bitfinex/quotes_SOLUSD_20250424
["timestamp","ask_amount","ask_price","bid_price","bid_amount"]
[1745514619228,106.24094331,150.69,150.68,0.063]
[1745514619413,23.54094331,150.69,150.68,0.063]
[1745514622310,23.54094331,150.69,150.68,1e-08]
[1745514624249,42.33275374,150.69,150.68,1e-08]
[1745514625523,23.54094331,150.69,150.68,1e-08]
[1745514626235,37.00094331,150.69,150.68,1e-08]
[1745514628418,37.02094331,150.69,150.68,1e-08]
[1745514628620,13.48,150.69,150.68,1e-08]
[1745514629042,23.53981608,150.72,150.68,1e-08]
[1745514629343,13.48,150.71,150.69,16.90480289]
[1745514629717,6.63305916,150.76,150.7,16.90480289]
[1745514629919,30.38480289,150.75,150.7,16.90480289]
[1745514630230,16.90480289,150.74,150.7,16.90480289]
[1745514630426,207.0,150.77,150.73,16.90480289]
[1745514630655,207.0,150.77,150.68,6.31750001]
[1745514630656,13.48,150.76,150.74,16.90480289]
[1745514631018,13.48,150.76,150.75,16.90480289]
[1745514631938,207.0,150.77,150.75,16.90480289]
[1745514632142,220.46,150.77,150.76,16.90480289]
[1745514632743,220.46,150.77,150.75,6.63321684]
[1745514632944,220.46,150.77,150.76,16.90480289]
[1745514633654,220.46,150.77,150.71,1.6393]
[1745514633856,16.90480289,150.74,150.7,16.90480289]
[1745514634067,16.90480289,150.72,150.68,16.9048029]
[1745514634364,13.46,150.72,150.68,23.54128523]
[1745514634557,13.46,150.72,150.69,16.90480289]
[1745514634760,13.46,150.72,150.68,23.54128523]
[1745514634967,13.46,150.72,150.69,16.90480289]
[1745514635541,13.46,150.72,150.71,16.90480289]
[1745514636255,13.46,150.72,150.71,23.54006266]
[1745514636745,82.7,150.75,150.71,23.54006266]
[1745514637052,82.7,150.75,150.73,16.90480289]
[1745514637265,13.46,150.76,150.73,16.90480289]
[1745514637465,5.19647531,150.87,150.8,26.0]
[1745514637630,5.19647531,150.87,150.8,42.90480289]
[1745514637836,5.19647531,150.87,150.84,16.90480289]
[1745514638055,5.19647531,150.87,150.85,16.90480289]
[1745514638362,0.03,150.88,150.86,16.90480289]
[1745514638567,0.03,150.88,150.87,16.90480289]
[1745514639268,0.03,150.88,150.87,26.97428243]
[1745514639633,0.03,150.88,150.86,26.97428243]
[1745514639867,0.03,150.88,150.85,26.97428243]
[1745514640042,0.03,150.88,150.83,6.62998077]
[1745514640236,0.03,150.88,150.87,26.97428243]
[1745514641740,0.03,150.88,150.87,33.6025054]
[1745514643333,0.03,150.88,150.87,26.97428243]
[1745514650249,0.03,150.88,150.86,26.0]
[1745514650470,0.03,150.88,150.87,26.97428243]
[1745514652966,0.03,150.88,150.86,26.97428243]
[1745514653271,0.03,150.88,150.87,26.97428243]
[1745514655247,0.03,150.88,150.85,26.0]
[1745514655554,0.03,150.88,150.87,26.97428243]
[1745514655755,0.03,150.88,150.86,26.97428243]
[1745514656677,27.00428243,150.88,150.81,1.5624]
[1745514656853,27.00428243,150.88,150.82,26.97428243]
[1745514656854,26.97428243,150.87,150.82,26.97428243]
[1745514657764,26.97428243,150.87,150.83,26.97428243]
[1745514658246,26.97428243,150.87,150.82,26.97428243]
[1745514658447,26.97428243,150.85,150.8,26.97428243]
[1745514658659,89.32970404,150.84,150.81,26.97428243]
[1745514658852,89.32955161,150.84,150.82,26.97428243]
[1745514659076,89.32955161,150.84,150.81,26.97428243]
[1745514659253,89.32955161,150.84,150.8,26.97428243]
[1745514660380,82.7,150.84,150.83,26.97428243]
[1745514660559,89.32954123,150.84,150.83,26.97428243]
[1745514660761,89.32954123,150.84,150.82,26.97428243]
[1745514661383,89.32954123,150.84,150.82,16.8720223]
[1745514662477,89.32954123,150.84,150.78,26.0]
[1745514662785,89.32954123,150.84,150.81,16.8720223]
[1745514663374,89.32954123,150.84,150.8,16.8720223]
[1745514663955,99.5720223,150.83,150.78,42.8720223]
[1745514664155,16.8720223,150.81,150.73,8.15535381]
[1745514664376,99.5720223,150.8,150.76,16.8720223]
[1745514664581,99.5720223,150.8,150.75,26.0]
[1745514664756,82.7,150.8,150.78,16.8720223]
[1745514664969,82.7,150.8,150.79,16.8720223]
[1745514665163,82.7,150.8,150.78,16.8720223]
[1745514666263,82.7,150.8,150.75,6.63342511]
[1745514666578,82.7,150.8,150.78,16.8720223]
[1745514666896,82.7,150.8,150.79,16.8720223]
[1745514667186,26.0,150.86,150.79,16.8720223]
[1745514667187,82.7,150.84,150.79,16.8720223]
[1745514667375,82.7,150.84,150.82,16.8720223]
[1745514668161,6.62882863,150.86,150.78,13.46]
[1745514668162,90.88047145,150.87,150.83,16.8720223]
[1745514668361,82.7,150.86,150.84,16.8720223]
[1745514668576,82.7,150.86,150.83,16.8720223]
[1745514669587,99.5720223,150.86,150.79,6.63167599]
[1745514669769,89.32925012,150.85,150.82,16.8720223]
[1745514670798,82.7,150.85,150.82,16.8720223]
[1745514670971,82.7,150.85,150.83,16.8720223]
[1745514671889,89.32918401,150.85,150.83,16.8720223]
[1745514673271,106.20120631,150.85,150.81,16.8720223]
[1745514673479,16.8720223,150.84,150.74,35.23447898]
[1745514673787,82.7,150.83,150.79,16.8720223]
[1745514673989,82.7,150.82,150.76,18.64964886]
[1745514674296,82.7,150.82,150.79,26.0]
[1745514674470,82.7,150.82,150.8,6.608]
[1745514674674,82.7,150.82,150.81,16.8720223]
[1745514674881,82.7,150.82,150.81,21.7497838]
[1745514675603,82.7,150.82,150.81,4.8777615]
[1745514675896,82.7,150.82,150.81,21.7497838]
[1745514677271,82.7,150.86,150.81,28.38064382]
[1745514677476,82.7,150.86,150.85,16.8720223]
[1745514677783,0.03,150.88,150.85,16.8720223]
[1745514677980,0.03,150.88,150.87,16.8720223]
[1745514678995,0.03,150.88,150.83,6.62998077]
[1745514679181,0.03,150.88,150.85,16.8720223]
[1745514680082,0.03,150.88,150.84,16.8720223]
[1745514680286,0.03,150.88,150.85,4.89209236]
[1745514681179,82.73,150.88,150.85,16.8720223]
[1745514682107,82.73,150.88,150.86,4.89715426]
[1745514682979,89.35784671,150.88,150.84,16.8720223]
[1745514683176,106.22986901,150.88,150.83,16.8720223]
[1745514683383,16.8720223,150.87,150.83,16.8720223]
[1745514683689,16.8720223,150.87,150.82,16.8720223]
[1745514684205,16.8720223,150.87,150.83,21.77299483]
[1745514684875,6.62866233,150.86,150.83,21.77299483]
[1745514685073,6.62866233,150.86,150.84,4.90097253]
[1745514685791,23.50037696,150.87,150.84,4.90097253]
[1745514686188,106.22999061,150.88,150.84,4.90097253]
[1745514686501,16.8720223,150.87,150.84,4.90097253]
[1745514686805,16.8720223,150.87,150.83,16.8720223]
[1745514687004,82.7,150.86,150.83,16.8720223]
[1745514688600,82.7,150.86,150.82,23.50235713]
[1745514689091,99.5720223,150.86,150.82,16.8720223]
[1745514689402,99.5720223,150.86,150.83,4.9017602]
[1745514690387,99.5720223,150.86,150.82,23.50242425]
[1745514690902,82.7,150.86,150.82,23.50242425]
[1745514691997,82.7,150.86,150.83,16.8720223]
[1745514692495,82.7,150.86,150.82,16.8720223]
[1745514692917,82.7,150.86,150.83,2.45212471]
[1745514693614,82.7,150.86,150.83,25.95412086]
[1745514693818,82.7,150.86,150.83,6.62997385]
[1745514693998,82.7,150.86,150.83,16.8720223]
[1745514694620,82.7,150.86,150.84,4.90613839]
[1745514695795,82.7,150.86,150.85,4.90613839]
[1745514698926,82.7,150.86,150.85,15.70354701]
[1745514699228,82.7,150.86,150.85,22.33264876]
[1745514700123,82.7,150.86,150.85,11.53524014]
[1745514700327,82.7,150.86,150.85,22.33264876]
[1745514701217,82.7,150.86,150.85,18.1593205]
[1745514701826,82.7,150.86,150.85,24.78842225]
[1745514703430,82.7,150.86,150.85,13.99101363]
[1745514703731,82.7,150.86,150.85,24.78842225]
[1745514704536,0.03,150.88,150.85,24.78842225]
[1745514704942,0.03,150.88,150.86,9.08415589]
[1745514705334,0.03,150.88,150.86,9.08441185]
[1745514705640,0.03,150.88,150.87,13.25318211]
[1745514706016,0.03,150.88,150.87,7.36191188]
[1745514708517,0.03,150.88,150.87,4.90613839]
[1745514709015,0.03,150.88,150.86,10.79740862]
[1745514710942,0.03,150.88,150.87,4.90633858]
[1745514711650,0.03,150.88,150.87,7.36055935]
[1745514714046,0.03,150.88,150.87,4.90633858]
[1745514715161,10.82740862,150.88,150.87,4.90633858]
[1745514715525,0.03,150.88,150.85,10.79740862]
[1745514715830,0.03,150.88,150.8,26.14216157]
[1745514716050,10.79740862,150.85,150.79,7.86241936]
[1745514716227,10.79740862,150.86,150.81,13.25402508]
[1745514716646,93.49740862,150.87,150.82,10.79740862]
[1745514716827,93.49740862,150.87,150.82,13.25402508]
[1745514717160,6.62866233,150.86,150.82,13.25402508]
[1745514717528,82.7,150.87,150.84,10.79740862]
[1745514717727,82.7,150.86,150.84,10.79740862]
[1745514718227,82.7,150.86,150.79,16.57923894]
[1745514718457,82.7,150.86,150.84,10.79740862]
[1745514719448,89.32894322,150.86,150.83,10.79740862]
[1745514719752,10.79740862,150.85,150.8,10.79740862]
[1745514719924,82.7,150.85,150.82,10.79740862]
[1745514720733,82.7,150.85,150.83,15.71291111]
[1745514720935,82.7,150.85,150.84,10.79740862]
[1745514721724,82.7,150.85,150.84,15.71291111]
[1745514722528,0.03,150.88,150.84,22.34245234]
[1745514722727,0.03,150.88,150.87,10.79740862]
[1745514723225,0.03,150.88,150.87,13.25337582]
[1745514723551,0.03,150.88,150.87,18.16887831]
[1745514724751,0.03,150.88,150.87,24.79710128]
[1745514724932,0.03,150.88,150.87,93.98673576]
[1745514725133,0.03,150.88,150.87,40.14185423]
[1745514725346,0.03,150.88,150.87,94.12889733]
[1745514726561,0.03,150.88,150.87,50.79710128]
[1745514726931,0.03,150.88,150.87,50.93926285]
[1745514727159,0.03,150.88,150.87,94.12889733]
[1745514727548,0.03,150.88,150.87,94.12304431]
[1745514727847,0.03,150.88,150.87,94.10727778]
[1745514728235,0.03,150.88,150.87,112.75692664]
[1745514728535,0.03,150.92,150.88,18.79181043]
[1745514728739,0.03,150.92,150.91,10.79740862]
[1745514729757,0.03,150.92,150.91,15.69761054]
[1745514729932,0.03,150.92,150.91,18.14725876]
[1745514730463,0.03,150.92,150.91,24.77372486]
[1745514732343,0.03,150.92,150.91,24.91588643]
[1745514732871,0.03,150.92,150.91,43.56553529]
[1745514733465,0.03,150.93,150.92,0.14216157]
[1745514733768,0.03,150.93,150.92,10.93957019]
[1745514734063,0.03,150.93,150.92,5.04236349]
[1745514734235,0.03,150.93,150.92,4.90020192]
[1745514735048,10.82740862,150.93,150.92,4.90020192]
[1745514735246,8.1076,150.93,150.92,4.90020192]
[1745514735546,24.96979846,150.93,150.92,4.90020192]
[1745514735762,24.96979846,150.93,150.88,16.86219846]
[1745514735962,82.7,150.92,150.88,16.86219846]
[1745514736178,82.7,150.91,150.83,1.6128]
[1745514736357,16.86219846,150.9,150.84,7.33061874]
[1745514736672,16.86219846,150.9,150.85,16.86219846]
[1745514736873,6.62778366,150.88,150.84,24.1928172]
[1745514737244,6.62778366,150.88,150.85,4.88702415]
[1745514737449,6.62778366,150.88,150.85,21.74922261]
[1745514737651,82.7,150.89,150.86,16.86219846]
[1745514738477,89.32738124,150.89,150.87,4.88702415]
[1745514739071,8.1076,150.93,150.88,16.86219846]
[1745514739272,0.03,150.93,150.87,51.67509354]
[1745514739478,16.86219846,150.92,150.89,4.88702415]
[1745514739686,16.86219846,150.91,150.89,4.88702415]
[1745514739973,89.3556713,150.93,150.89,4.88702415]
[1745514740192,16.86219846,150.92,150.87,16.86219846]
[1745514740348,16.86219846,150.91,150.85,6.62906082]
[1745514740671,16.86219846,150.91,150.87,16.86219846]
[1745514741176,16.86219846,150.91,150.88,4.88599758]
[1745514742178,23.48872965,150.91,150.89,4.88599758]
[1745514742479,16.86219846,150.9,150.89,4.88599758]
[1745514743170,23.48918307,150.9,150.86,4.88599758]
[1745514743747,23.48918307,150.9,150.87,4.88599758]
[1745514743950,16.86219846,150.89,150.87,4.88599758]
[1745514744272,99.56219846,150.89,150.87,4.88599758]
[1745514744579,99.56219846,150.89,150.86,4.88599758]
[1745514745258,82.7,150.89,150.87,4.88599758]
[1745514745453,99.56219846,150.89,150.87,4.88599758]
[1745514745965,16.86219846,150.88,150.86,4.88599758]
[1745514746177,99.56219846,150.87,150.86,4.88599758]
[1745514746373,16.86219846,150.87,150.86,4.88599758]
[1745514746557,35.51184732,150.87,150.86,4.88599758]
[1745514746753,49.69184732,150.87,150.86,4.88599758]
[1745514746954,18.64964886,150.86,150.81,4.88599758]
[1745514747254,16.86219846,150.82,150.81,4.88599758]
[1745514747459,16.86219846,150.82,150.8,0.063]
[1745514747782,16.86219846,150.81,150.8,0.063]
[1745514748151,66.55404578,150.81,150.8,0.063]
[1745514748372,49.69184732,150.81,150.8,0.063]
[1745514749479,20.81086002,150.81,150.8,0.063]
[1745514749782,37.67305848,150.81,150.8,0.063]
[1745514750289,56.32270734,150.81,150.8,0.063]
[1745514750462,56.46486891,150.81,150.8,0.063]
[1745514750859,1.5527,150.84,150.8,0.063]
[1745514751262,16.86219846,150.83,150.8,0.063]
[1745514751583,16.86219846,150.82,150.8,0.063]
[1745514751887,82.7,150.83,150.8,16.92519846]
[1745514752055,82.7,150.83,150.81,16.86219846]
[1745514752255,82.7,150.83,150.82,16.86219846]
[1745514752455,99.56219846,150.83,150.8,0.063]
[1745514752673,16.86219846,150.82,150.8,0.063]
[1745514753084,82.7,150.83,150.8,0.063]
[1745514753662,16.86219846,150.82,150.8,0.063]
[1745514753965,106.19218911,150.83,150.8,0.063]
[1745514754157,82.7,150.83,150.8,0.063]
[1745514754511,82.7,150.83,150.81,16.86219846]
[1745514754785,82.7,150.87,150.82,16.86219846]
[1745514754967,82.7,150.87,150.85,16.86219846]
[1745514755173,82.7,150.87,150.84,16.86219846]
[1745514756686,89.32827434,150.87,150.81,6.63084891]
[1745514756898,89.32827434,150.87,150.83,16.86219846]
[1745514757057,106.1904728,150.87,150.83,16.86219846]
[1745514757255,16.86219846,150.84,150.8,0.063]
[1745514757464,16.86219846,150.81,150.8,0.063]
[1745514757671,106.19294136,150.82,150.8,0.063]
[1745514758786,82.7,150.82,150.8,0.063]
[1745514758987,106.19265602,150.82,150.8,0.063]
[1745514759793,16.86219846,150.81,150.8,0.063]
[1745514760398,23.49265602,150.82,150.8,0.063]
[1745514760581,16.86219846,150.82,150.8,0.063]
[1745514760970,26.0,150.85,150.8,16.92519846]
[1745514761177,99.56219846,150.84,150.8,16.92519846]
[1745514762702,82.7,150.84,150.81,16.86219846]
[1745514762903,82.7,150.84,150.8,6.69414132]
[1745514762904,82.7,150.84,150.82,16.86219846]
[1745514763278,82.7,150.84,150.83,16.86219846]
[1745514763473,82.7,150.87,150.83,16.86219846]
[1745514763673,82.7,150.87,150.8,49.55633978]
[1745514763674,82.7,150.87,150.84,16.86219846]
[1745514763876,82.7,150.88,150.84,16.86219846]
[1745514764107,89.32781292,150.88,150.84,16.86219846]
[1745514765299,82.7,150.88,150.83,6.62986838]
[1745514765477,82.7,150.88,150.85,16.86219846]
[1745514765808,89.32787767,150.88,150.84,16.86219846]
[1745514766105,106.19007613,150.88,150.83,16.86219846]
[1745514766290,89.32787767,150.88,150.83,16.86219846]
[1745514766486,106.19007613,150.88,150.83,16.86219846]
[1745514766688,16.86219846,150.87,150.81,6.63075191]
[1745514766994,16.86219846,150.87,150.83,16.86219846]
[1745514767290,89.32787767,150.88,150.84,16.86219846]
[1745514768177,82.7,150.88,150.86,16.86219846]
[1745514769692,82.7,150.88,150.87,16.86219846]
[1745514770403,82.7,150.92,150.87,23.49040649]
[1745514770575,6.65572414,150.93,150.89,16.86219846]
[1745514770781,0.03,150.93,150.9,16.86219846]
[1745514771001,82.7,150.92,150.91,16.86219846]
[1745514771410,82.7,150.92,150.9,16.86219846]
[1745514772116,82.7,150.92,150.91,16.86219846]
[1745514773912,82.7,150.92,150.89,16.86219846]
[1745514775915,89.32618625,150.92,150.88,16.86219846]
[1745514776099,89.32618625,150.92,150.89,16.86219846]
[1745514777025,82.7,150.92,150.89,16.86219846]
[1745514777226,82.7,150.92,150.9,16.86219846]
[1745514778112,82.7,150.92,150.91,16.86219846]
[1745514779737,0.03,150.93,150.92,6.62602703]
[1745514779912,0.03,150.93,150.92,23.48822549]
[1745514785106,0.03,150.93,150.92,28.3514294]
[1745514786235,0.03,150.93,150.92,23.48822549]
[1745514787811,0.03,150.93,150.92,6.62602703]
[1745514788112,16.89219846,150.93,150.86,1.6328]
[1745514788329,16.86219846,150.91,150.86,16.86219846]
[1745514788526,16.86219846,150.9,150.86,16.86219846]
[1745514788740,16.86219846,150.91,150.86,16.86219846]
[1745514789035,16.86219846,150.9,150.85,6.62910175]
[1745514789335,16.86219846,150.89,150.83,26.0]
[1745514789517,16.86219846,150.88,150.83,6.62955346]
[1745514789719,16.86219846,150.88,150.83,23.49175192]
[1745514790124,16.86219846,150.88,150.84,16.86219846]
[1745514790626,106.1895864,150.89,150.84,23.49166867]
[1745514791216,82.7,150.89,150.85,16.86219846]
[1745514792137,106.18967106,150.89,150.84,23.49166867]
[1745514792444,106.18967106,150.89,150.84,16.86219846]
[1745514792647,16.86219846,150.86,150.82,16.86219846]
[1745514792940,16.86219846,150.86,150.81,16.86219846]
[1745514793640,16.86219846,150.84,150.8,26.063]
[1745514794046,99.56219846,150.85,150.8,42.92519846]
[1745514794543,6.62954123,150.84,150.8,42.92519846]
[1745514795229,23.49173969,150.84,150.8,0.063]
[1745514795433,99.56219846,150.83,150.8,0.063]
[1745514796663,82.7,150.83,150.8,16.92519846]
[1745514798937,82.7,150.83,150.8,0.063]
[1745514799536,82.7,150.83,150.81,16.86219846]
[1745514800123,82.7,150.83,150.82,16.86219846]
[1745514800746,82.7,150.83,150.82,23.49261882]
[1745514801250,114.04219846,150.87,150.82,23.49261882]
[1745514801455,114.04219846,150.87,150.83,16.86219846]
[1745514801949,82.7,150.87,150.86,16.86219846]
[1745514802131,82.7,150.9,150.86,16.86219846]
[1745514802332,82.7,150.9,150.87,16.86219846]
[1745514802557,82.7,150.9,150.86,16.86219846]
[1745514802737,82.7,150.9,150.86,23.49079972]
[1745514803437,82.7,150.9,150.87,16.86219846]
[1745514805149,82.7,150.9,150.85,6.62910175]
[1745514805353,82.7,150.9,150.86,16.86219846]
[1745514805532,82.7,150.9,150.87,16.86219846]
[1745514806248,82.7,150.9,150.88,16.86219846]
[1745514806643,82.7,150.9,150.89,16.86219846]
[1745514807248,82.7,150.9,150.89,23.48954288]
[1745514807760,82.7,150.9,150.89,28.37657529]
[1745514808058,82.7,150.9,150.89,7.33085987]
[1745514808853,82.7,150.9,150.89,4.88703241]
[1745514809568,82.7,150.9,150.89,21.74923087]
[1745514809774,82.7,150.9,150.89,16.86219846]
[1745514810268,82.7,150.92,150.89,16.86219846]
[1745514810571,106.18828031,150.92,150.88,16.86219846]
[1745514810872,106.18828031,150.92,150.87,16.86219846]
[1745514811078,16.86219846,150.91,150.88,2.44845372]
[1745514811450,23.48900485,150.91,150.87,16.86219846]
[1745514812277,23.48900485,150.91,150.86,16.86219846]
[1745514812676,16.86219846,150.88,150.81,1.6318]
[1745514812883,16.86219846,150.87,150.82,28.39795009]
[1745514813054,99.56219846,150.88,150.83,16.86219846]
[1745514813252,82.7,150.88,150.85,16.86219846]
[1745514813453,82.7,150.89,150.85,16.86219846]
[1745514814177,82.7,150.89,150.85,23.49121903]
[1745514814874,82.7,150.89,150.86,4.89926519]
[1745514815966,82.7,150.89,150.85,23.49121903]
[1745514816377,82.7,150.89,150.85,16.86219846]
[1745514816583,82.7,150.89,150.85,15.86219846]
[1745514816874,99.56219846,150.89,150.85,15.86219846]
[1745514817068,99.56219846,150.89,150.86,2.44862293]
[1745514817270,99.56219846,150.89,150.86,1.44862293]
[1745514818370,99.56219846,150.89,150.85,23.49129807]
[1745514819088,99.56219846,150.89,150.85,16.86219846]
[1745514819280,99.56219846,150.89,150.86,4.90467817]
[1745514819480,16.86219846,150.88,150.86,4.90467817]
[1745514819794,16.86219846,150.87,150.86,4.90467817]
[1745514820285,82.7,150.86,150.8,0.063]
[1745514820465,16.86219846,150.83,150.8,0.063]
[1745514821762,16.86219846,150.82,150.8,0.063]
[1745514822990,16.86219846,150.81,150.8,0.063]
[1745514825792,16.86219846,150.81,150.77,23.18378216]
[1745514826088,16.86219846,150.78,150.73,16.92519846]
[1745514826468,16.86219846,150.79,150.74,16.86219846]
[1745514826894,82.7,150.8,150.76,16.86219846]
[1745514827094,82.7,150.8,150.74,6.63364668]
[1745514827095,82.7,150.8,150.77,16.86219846]
[1745514829008,82.7,150.83,150.79,16.86219846]
[1745514829881,99.56219846,150.83,150.79,16.86219846]
[1745514830086,106.19223379,150.83,150.77,32.6325514]
[1745514830270,16.86219846,150.81,150.76,16.86219846]
[1745514830469,16.86219846,150.79,150.75,49.49559681]
[1745514830792,16.86219846,150.8,150.75,32.63339835]
[1745514830973,6.63086002,150.81,150.75,49.49559681]
[1745514831288,16.86219846,150.8,150.76,4.91560832]
[1745514832394,16.86219846,150.8,150.76,16.86219846]
[1745514832575,16.86219846,150.8,150.76,23.4951883]
[1745514833084,23.493552,150.8,150.76,16.86219846]
[1745514833271,23.493552,150.8,150.75,49.49552829]
[1745514833470,6.63135354,150.8,150.76,16.86219846]
[1745514833691,23.493552,150.8,150.76,16.86219846]
[1745514834195,16.86219846,150.8,150.76,16.86219846]
[1745514834398,23.49355538,150.8,150.76,16.86219846]
[1745514835173,16.86219846,150.8,150.75,49.49552829]
[1745514835916,16.86219846,150.8,150.76,16.86219846]
[1745514837098,99.56219846,150.82,150.77,16.86219846]
[1745514837502,106.1926918,150.82,150.77,16.86219846]
[1745514837699,16.86219846,150.81,150.76,23.49521534]
[1745514838081,16.86219846,150.8,150.76,16.86219846]
[1745514838411,16.86219846,150.78,150.74,16.86219846]
[1745514839405,16.86219846,150.78,150.74,23.49612143]
[1745514840797,16.86219846,150.77,150.73,49.55953986]
[1745514841114,16.86219846,150.77,150.73,42.92519846]
[1745514841516,16.86219846,150.77,150.73,49.5595306]
[1745514841919,23.49484682,150.77,150.73,26.063]
[1745514842115,16.86219846,150.77,150.73,42.92519846]
[1745514842326,16.86219846,150.77,150.73,49.5595687]
[1745514842821,23.49489708,150.77,150.73,42.92519846]
[1745514843221,99.56219846,150.76,150.73,26.063]
[1745514846425,82.7,150.76,150.73,32.69730705]
[1745514846811,82.7,150.76,150.73,49.55950551]
[1745514847326,82.7,150.76,150.75,16.86219846]
[1745514848324,82.7,150.79,150.75,16.86219846]
[1745514848623,99.56219846,150.79,150.76,6.63305916]
[1745514848925,82.7,150.79,150.76,6.63305916]
[1745514849131,82.7,150.79,150.76,23.49525762]
[1745514849331,82.7,150.79,150.76,6.63305916]
[1745514850519,99.56219846,150.79,150.75,23.49553923]
[1745514851828,82.7,150.79,150.75,23.49553923]
[1745514852029,99.56219846,150.79,150.75,23.49553923]
[1745514854035,82.7,150.79,150.75,23.49553923]
[1745514854338,106.19395212,150.79,150.75,23.49553923]
[1745514854506,99.56219846,150.79,150.75,23.49553923]
[1745514855031,106.1939535,150.79,150.74,16.86219846]
[1745514855228,16.86219846,150.78,150.73,42.92519846]
[1745514855638,89.33175504,150.79,150.73,42.92519846]
[1745514855818,106.1939535,150.79,150.74,16.86219846]
[1745514856527,16.86219846,150.78,150.73,49.55914689]
[1745514857341,106.1939535,150.79,150.74,16.86219846]
[1745514857736,89.33175504,150.79,150.74,23.49602777]
[1745514857935,106.1939535,150.79,150.74,23.49602777]
[1745514858536,16.86219846,150.78,150.73,49.55942347]
[1745514858735,89.33175504,150.79,150.73,49.55942347]
[1745514859033,16.86219846,150.78,150.73,49.55942347]
[1745514859249,89.33175504,150.79,150.73,49.55942347]
[1745514859416,10.80906481,150.78,150.74,10.80906481]
[1745514859933,93.50906481,150.78,150.74,10.80906481]
[1745514860141,93.50906481,150.78,150.73,43.50628982]
[1745514860438,82.7,150.78,150.75,10.80906481]
[1745514860641,82.7,150.78,150.74,10.80906481]
[1745514861227,100.14127062,150.78,150.73,26.063]
[1745514861525,10.80906481,150.77,150.73,26.063]
[1745514862638,17.44173894,150.77,150.73,26.063]
[1745514863418,82.7,150.78,150.75,10.80906481]
[1745514863744,82.7,150.78,150.76,10.80906481]
[1745514864044,82.7,150.78,150.75,10.80906481]
[1745514864712,82.7,150.78,150.75,17.44252061]
[1745514865740,17.44040593,150.8,150.75,17.44252061]
[1745514866049,10.80906481,150.79,150.76,4.95029582]
[1745514866213,10.80906481,150.77,150.76,4.95029582]
[1745514867343,10.80906481,150.77,150.73,0.063]
[1745514867344,26.0,150.74,150.73,0.063]
[1745514867526,92.52103168,150.74,150.69,0.063]
[1745514867731,16.90569141,150.71,150.69,0.063]
[1745514868114,50.21100004,150.71,150.69,0.063]
[1745514868961,76.35316161,150.71,150.69,0.063]
[1745514869330,26.14216157,150.69,150.68,1e-08]
[1745514869522,57.10785298,150.69,150.68,1e-08]
[1745514870258,18.79181043,150.68,150.59,0.063]
[1745514870555,35.55534027,150.66,150.59,0.063]
[1745514872036,42.1928021,150.66,150.59,0.063]
[1745514874146,68.1928021,150.66,150.59,0.063]
[1745514874826,18.64964886,150.65,150.59,0.063]
[1745514875051,16.90569141,150.6,150.59,0.063]
[1745514875459,16.90569141,150.61,150.59,0.063]
[1745514876059,16.90569141,150.62,150.59,0.063]
[1745514876259,16.90569141,150.61,150.59,0.063]
[1745514876461,16.90569141,150.6,150.59,0.063]
[1745514876753,16.90569141,150.61,150.59,0.063]
[1745514880475,99.60569141,150.6,150.59,0.063]
[1745514881547,35.55534027,150.6,150.59,0.063]
[1745514881765,35.69750184,150.6,150.59,0.063]
[1745514882339,42.33760808,150.6,150.59,0.063]
[1745514883955,44.64964886,150.57,150.56,0.9245499]
[1745514884161,100.85012248,150.57,150.56,0.9245499]
[1745514884353,61.55534027,150.53,150.52,0.03]
[1745514885284,18.79181043,150.52,150.41,1.5794]
[1745514885488,16.90569141,150.42,150.33,3.36123388]
[1745514885782,16.90569141,150.41,150.36,16.90569141]
[1745514885958,16.90569141,150.43,150.38,16.90569141]
[1745514886154,30.88569141,150.44,150.39,16.90569141]
[1745514886372,13.98,150.44,150.41,16.90569141]
[1745514886569,13.98,150.44,150.4,16.90569141]
[1745514887072,13.98,150.44,150.39,26.0]
[1745514887363,16.90569141,150.46,150.41,16.90569141]
[1745514887990,16.90569141,150.43,150.39,26.0]
[1745514888192,18.64964886,150.44,150.32,24.22602827]
[1745514888513,18.64964886,150.42,150.33,6.65203219]
[1745514888661,16.90569141,150.37,150.32,25.11796505]